[Event "FIDE WCCC U12 2018"]
[Site "Santiago de Compostela"]
[Date "2018.11.05"]
[Round "2"]
[White "Arfan, Aditya Bagus"]
[Black "Yu, Jason"]
[Result "0-1"]
[ECO "C77"]
[WhiteElo "1841"]
[BlackElo "2097"]
[Annotator "NA RC"]
[PlyCount "106"]
[EventDate "2018.11.04"]
[EventType "swiss"]
[EventCountry "ESP"]
[SourceTitle "playchess.com"]
[Source "ChessBase"]
[SourceQuality "1"]
[TimeControl "40/5400+30:1800+30"]

{[%evp 10,104,-8,32767,32767,8,43,32767,50,32767,45,19,8,12,36,2,32767,32767,32767,32767,32767,-64,-75,-84,-81,-74,-76,-85,-109,-120,-163,-123,-137,-128,-116,-132,-89,-150,-146,-158,-131,-118,-124,-157,32767,32767,32767,32767,32767,32767,32767,32767,32767,32767,32767,32767,-1379,-1220,-441,-441,-670,-1306,-726,-2095,-29969,-29980,-544,-489,-418,-425,-551,-681,-737,-708,-1066,32767,32767,32767,-997,-741,32767,32767,32767,32767,32767,32767,32767,32767,-29981,-29980,-29981,-29983,0,-29979,32767,-29984,-29985]} 1. e4 {[%emt 0:00:00]} e5 {[%emt 0:00:00]} 2. Nf3 {[%emt 0:00:00]} Nc6 {[%emt 0:00:00]} 3. Bb5 {[%emt 0:00:23]} a6 {[%emt 0:00:00]} 4. Ba4 {[%emt 0:00:19]} Nf6 {[%emt 0:00:00]} 5. Qe2 {[%emt 0:00:11]} b5 {[%emt 0:01:38]} 6. Bb3 {[%emt 0:00:10]} d6 {[%emt 0:03:28]} 7. c3 {[%emt 0:00:26] LiveBook: 18 Games} h6 {[%emt 0:00:23] C77: Ruy Lopez: 3...a6 4 Ba4 Nf6, unusual lines} (7... Be7 8. O-O Bg4 9. h3 Bh5 10. Rd1 Na5 11. Bc2 c6 12. d4 Qc7 13. Nbd2 O-O 14. a4 Rfe8 15. axb5 axb5 16. g4 Bg6 17. dxe5 dxe5 18. b4 Nb7 19. Rxa8 Rxa8 20. Bb3 {½-½ (20) Mamedov,R (2624)-Filippov,A (2637) Nakhchivan 2012}) 8. O-O {[%emt 0:00:19]} Be7 {[%emt 0:02:11]} 9. d4 $146 {[%emt 0:01:38]} ({Predecessor:} 9. Rd1 Bg4 10. h3 Bxf3 11. Qxf3 O-O 12. d4 Qe8 13. Be3 Kh8 14. Nd2 {1-0 (29) Lyashenko,A (2022)-Koltsov,V (2064) Novokuznetsk 2014}) 9... Bg4 {[%emt 0:05:51]} 10. d5 {[%emt 0:06:02]} Na5 {[%emt 0:00:58]} 11. Bc2 {[%emt 0:00:08]} O-O {[%emt 0:05:47]} 12. a4 {[%emt 0:04:07]} Qd7 {[%emt 0:02:27]} 13. axb5 {[%emt 0:10:40]} axb5 {[%emt 0:00:09]} 14. Na3 {[%emt 0:00:35]} Nc4 {[%emt 0:05:04]} 15. b3 {[%emt 0:09:05] [#]} Nxa3 $1 {[%emt 0:03:45]} 16. Rxa3 {[%emt 0:00:54]} Rxa3 {[%emt 0:00:30]} 17. Bxa3 {[%emt 0:00:02]} Ra8 {[%emt 0:00:19]} 18. Ra1 {[%emt 0:04:21]} c6 {[%emt 0:08:55]} 19. c4 {[%emt 0:14:42]} cxd5 {[%emt 0:04:14]} 20. cxd5 {[%emt 0:00:32] [#]} b4 $1 {[%emt 0:06:24]} 21. Bb2 {[%emt 0:00:11]} Rxa1+ {[%emt 0:00:05]} 22. Bxa1 {[%emt 0:00:04]} Qa7 {[%emt 0:00:13]} 23. Qe1 {[%emt 0:03:03]} Bxf3 {[%emt 0:00:58]} 24. gxf3 {[%emt 0:02:22]} Nh5 {[%emt 0:00:59]} 25. Bb2 {[%emt 0:01:17]} Qc5 {[%emt 0:00:11]} 26. Bd3 {[%emt 0:03:14]} Nf4 {[%emt 0:01:03]} 27. Bc4 {[%emt 0:00:23]} Bh4 {[%emt 0:00:23]} 28. Bf1 {[%emt 0:03:56]} Qc2 {[%emt 0:01:45]} 29. Bc1 {[%emt 0:00:26]} Bxf2+ {[%emt 0:00:32]} 30. Qxf2 {[%emt 0:00:15]} Qxc1 {[%emt 0:00:03]} 31. Qb6 {[%emt 0:02:26]} Qc3 {[%emt 0:02:03]} 32. Kf2 {[%emt 0:06:02]} Qc2+ {[%emt 0:06:17]} 33. Kg3 {[%emt 0:01:32]} Qd1 {[%emt 0:03:06]} (33... Qxb3 $142 34. Qxd6 Qc3) 34. Bc4 {[%emt 0:00:51]} h5 {[%emt 0:01:22]} 35. Qf2 {[%emt 0:06:16]} Kh7 {[%emt 0:02:29]} 36. h3 {[%emt 0:03:14]} Qh1 {[%emt 0:02:07]} 37. Qf1 {[%emt 0:00:33]} Qxf1 {[%emt 0:02:08]} (37... h4+ $142 38. Kf2 Qh2+ 39. Ke1 Qc2) 38. Bxf1 {[%emt 0:00:02]} Kg6 {[%emt 0:00:39]} 39. Bb5 {[%emt 0:00:49]} Kf6 {[%emt 0:00:10]} 40. Bc4 {[%emt 0:00:00]} Ke7 {[%emt 0:00:00]} 41. Bb5 {[%emt 0:03:07]} Kd8 {[%emt 0:00:52]} 42. h4 {[%emt 0:00:14]} f6 {[%emt 0:00:34]} 43. Kf2 {[%emt 0:00:19]} g5 {[%emt 0:00:21]} 44. Kg3 {[%emt 0:00:07]} Kc7 {[%emt 0:00:05]} 45. Be8 {[%emt 0:00:09]} Kb6 {[%emt 0:00:46]} 46. hxg5 {[%emt 0:00:07]} fxg5 {[%emt 0:00:07]} 47. Bxh5 {[%emt 0:00:07]} Nxh5+ {[%emt 0:00:06]} 48. Kg4 {[%emt 0:00:04]} Nf4 {[%emt 0:00:18]} 49. Kxg5 $11 {[%emt 0:00:02]} Kc5 {[%emt 0:00:07]} (49... Nd3 50. f4) 50. Kf6 {[%emt 0:00:05]} Kb6 $11 {[%emt 0:01:21]} (50... Ne2 {setzt Matt} 51. Kg5 Nc1 52. f4 Nxb3 53. f5 Nd2 54. Kg6 Nxe4 55. Kg7 Kxd5 56. f6 b3 57. f7 Ng5 58. f8=R Ne6+ 59. Kf7 Nxf8 60. Kxf8 e4 61. Ke7 e3 62. Kf7 b2 63. Kg6 e2 64. Kf5 b1=Q+ 65. Kf6 e1=Q 66. Kg5 Qg3+ 67. Kf6 Qb7 68. Kf5 Qf7#) 51. Kf7 $2 {[%emt 0:00:30]} Kc7 {[%emt 0:00:47]} 52. Ke8 {[%emt 0:00:16]} Ng6 {[%emt 0:00:12]} 53. Kf7 {[%emt 0:00:07]} Nh4 {[%emt 0:00:52]} 0-1

[Event "FIDE WCCC U12 2018"]
[Site "Santiago de Compostela"]
[Date "2018.11.05"]
[Round "2"]
[White "Yavuz, Efe Metehan"]
[Black "Creanga, Robert-Ionut"]
[Result "1/2-1/2"]
[ECO "A37"]
[WhiteElo "1828"]
[BlackElo "2066"]
[Annotator "NA RC"]
[PlyCount "66"]
[EventDate "2018.11.04"]
[EventType "swiss"]
[EventCountry "ESP"]
[SourceTitle "playchess.com"]
[Source "ChessBase"]
[SourceQuality "1"]
[TimeControl "40/5400+30:1800+30"]

{[%evp 16,66,0,-6,-7,-47,-35,-47,-36,-51,32767,32767,32767,32767,32767,32767,-70,-84,-80,-102,-58,-72,-64,-72,32767,-62,32767,32767,32767,32767,32767,32767,32767,32767,-125,-272,-284,-387,-470,-465,-480,-615,-245,-269,-45,-72,32767,32767,27,30,32,31,39]} 1. Nf3 {[%emt 0:00:00]} c5 {[%emt 0:00:00]} 2. c4 Nc6 {[%emt 0:00:39]} 3. Nc3 {[%emt 0:00:11]} g6 {[%emt 0:00:22]} 4. g3 {[%emt 0:00:45]} Bg7 {[%emt 0:01:45]} 5. Bg2 {[%emt 0:00:19]} e6 {[%emt 0:00:57]} 6. O-O {[%emt 0:00:29]} Nge7 {[%emt 0:00:18]} 7. d3 {[%emt 0:00:35]} d5 {[%emt 0:01:41]} 8. cxd5 {[%emt 0:01:20]} exd5 {[%emt 0:00:14]} 9. Bd2 {[%emt 0:00:20] A37: Symmetrical English vs ...g6: 4 Bg2 Bg7 5 Nf3} O-O {[%emt 0:03:36]} 10. Qc1 {[%emt 0:03:30]} (10. a3 h6 11. Rb1 a5 12. Qc1 Kh7 13. Nb5 Qb6 14. a4 Na7 15. Nxa7 Qxa7 16. e4 Be6 17. Bc3 {0-1 (66) Dzagnidze,N (2520)-Muzychuk,A (2558) Doha 2016}) 10... d4 {[%emt 0:11:38]} 11. Ne4 {[%emt 0:01:11]} b6 {[%emt 0:00:20]} 12. Bh6 {[%emt 0:01:49] LiveBook: 4 Games} f5 {[%emt 0:16:46]} 13. Qc4+ $146 {[%emt 0:02:43]} ({Predecessor:} 13. Bxg7 Kxg7 14. Ned2 Bb7 15. b4 cxb4 16. Nb3 Qd6 {0-1 (46) Nguyen,H (2218)-Hoang,C (2405) Bac Giang 2016}) 13... Kh8 {[%emt 0:01:04]} 14. Bxg7+ {[%emt 0:00:08]} Kxg7 {[%emt 0:00:06]} 15. Neg5 {[%emt 0:04:59]} Qd6 {[%emt 0:09:02]} 16. h4 {[%emt 0:08:24]} h6 {[%emt 0:03:08]} 17. Nh3 {[%emt 0:00:08]} Be6 {[%emt 0:01:21]} 18. Qc1 {[%emt 0:00:18]} Rac8 {[%emt 0:04:13]} 19. Nf4 {[%emt 0:04:23]} Bg8 {[%emt 0:04:07]} 20. Re1 {[%emt 0:05:33]} Nd5 {[%emt 0:03:12]} 21. Qd2 {[%emt 0:13:53]} Rfe8 {[%emt 0:07:35]} 22. Bh3 {[%emt 0:08:14]} Nxf4 {[%emt 0:07:20]} 23. gxf4 {[%emt 0:01:29]} Bd5 {[%emt 0:01:55]} 24. Bg2 {[%emt 0:04:43]} Qf6 {[%emt 0:03:10]} 25. h5 {[%emt 0:00:08]} (25. a3 $17 {was worth a try.}) 25... gxh5 {[%emt 0:01:24]} 26. e3 {[%emt 0:04:04]} Kh8 {[%emt 0:02:34]} (26... Qg6 $2 27. Nh4 $17) 27. Kf1 {[%emt 0:02:51]} Rg8 {[%emt 0:01:59]} 28. Bh1 {[%emt 0:00:22]} dxe3 {[%emt 0:02:00]} (28... Rce8 $142 29. Ke2 Bxf3+ 30. Kxf3 Nb4) 29. fxe3 {[%emt 0:00:49]} Nb4 $2 {[%emt 0:07:00]} (29... Bxf3 $19 30. Bxf3 Rg3) 30. a3 {[%emt 0:01:03]} Bxf3 {[%emt 0:01:49]} 31. Bxf3 {[%emt 0:00:02]} Nc6 {[%emt 0:01:35]} 32. Qc3 $1 {[%emt 0:00:13]} Qxc3 {[%emt 0:01:00]} 33. bxc3 {[%emt 0:01:23]} Ne7 $14 {[%emt 0:00:31]} 1/2-1/2

[Event "FIDE WCCC U12 2018"]
[Site "Santiago de Compostela"]
[Date "2018.11.07"]
[Round "3"]
[White "Yu, Jason"]
[Black "Zhao, Jeffrey Renfei"]
[Result "1/2-1/2"]
[ECO "B92"]
[WhiteElo "2097"]
[BlackElo "1889"]
[Annotator "NA RC"]
[PlyCount "99"]
[EventDate "2018.11.04"]
[EventType "swiss"]
[EventCountry "ESP"]
[SourceTitle "playchess.com"]
[Source "ChessBase"]
[SourceQuality "1"]
[TimeControl "40/5400+30:1800+30"]

{[%evp 16,94,0,-6,21,32767,32767,32767,32767,0,-4,32767,-9,-17,0,11,4,1,0,4,9,1,0,0,12,12,27,6,16,9,14,17,20,20,12,27,22,23,25,25,20,16,91,32767,32767,32767,32767,54,122,40,35,31,33,39,37,35,35,35,49,44,34,0,0,0,0,0,0,0,32767,0,0,32767,32767,32767,0,0,0,32767,0,32767,0]} 1. e4 {[%emt 0:00:00]} c5 {[%emt 0:00:00]} 2. Nf3 {[%emt 0:00:00]} d6 {[%emt 0:00:00]} 3. d4 {[%emt 0:00:00]} cxd4 {[%emt 0:00:00]} 4. Nxd4 {[%emt 0:00:00]} Nf6 {[%emt 0:00:00]} 5. Nc3 {[%emt 0:00:00]} a6 {[%emt 0:00:05]} 6. Be2 {[%emt 0:00:00]} e5 {[%emt 0:00:10]} 7. Nb3 {[%emt 0:00:00]} Be7 {[%emt 0:00:17]} 8. a4 {[%emt 0:00:03]} O-O {[%emt 0:00:30]} 9. O-O {[%emt 0:00:06]} Be6 {[%emt 0:00:30]} 10. f4 {[%emt 0:01:04]} exf4 {[%emt 0:00:07]} 11. Bxf4 {[%emt 0:00:18]} Nc6 {[%emt 0:00:15]} 12. Kh1 {[%emt 0:00:53]} d5 {[%emt 0:03:44]} 13. e5 {[%emt 0:08:29]} Ne4 {[%emt 0:00:23]} 14. Bd3 {[%emt 0:00:47] B92: Sicilian Najdorf: 6 Be2} f5 {[%emt 0:00:23]} 15. exf6 $1 {[%emt 0:00:54]} Bxf6 {[%emt 0:01:33]} 16. Nxe4 {[%emt 0:10:27]} dxe4 {[%emt 0:00:10] LiveBook: 4 Games} 17. Bxe4 {[%emt 0:00:20]} Qxd1 {[%emt 0:01:09]} ({Don't go for} 17... Bxb2 $2 {[#]} 18. Qh5 $1 $18 {[%mdl 512]}) 18. Raxd1 {[%emt 0:00:27]} Bxb2 {[%emt 0:00:21]} 19. g3 {[%emt 0:10:18] [#]} Bc4 $146 {[%emt 0:08:27]} ({Predecessor:} 19... Rae8 20. Nc5 Bc4 21. Rfe1 Bc3 22. Bd2 Bd4 23. Be3 Bc3 24. Bd2 Bd4 25. Be3 Bc3 26. Bd2 {½-½ (26) Kovalev,A (2537)-Brodsky,M (2549) Tiumen 2010}) 20. Rfe1 {[%emt 0:02:03]} Bc3 {[%emt 0:06:51]} 21. Re3 {[%emt 0:00:45]} Bb4 {[%emt 0:04:03]} 22. Bxc6 {[%emt 0:17:15]} bxc6 {[%emt 0:00:28]} 23. Re4 {[%emt 0:00:17]} Bxb3 $1 {[%emt 0:01:07]} ({Much weaker is} 23... Bd5 $6 {[#]} 24. Rxd5 $1 {[%mdl 512]} cxd5 25. Rxb4 $16) 24. cxb3 {[%emt 0:00:10]} a5 {[%emt 0:01:04]} 25. Kg2 {[%emt 0:02:26]} Rad8 {[%emt 0:01:04]} 26. Rxd8 {[%emt 0:05:47]} Rxd8 {[%emt 0:00:10]} 27. Kf3 {[%emt 0:00:45]} Rd3+ {[%emt 0:01:31]} 28. Re3 {[%emt 0:00:18]} Rxe3+ {[%emt 0:00:17]} (28... Rd8 $11 {remains equal.}) 29. Bxe3 {[%emt 0:02:00]} Kf7 {[%emt 0:00:15]} 30. Ke4 {[%emt 0:00:15]} Ke6 {[%emt 0:00:12]} 31. g4 {[%emt 0:01:58]} g6 {[%emt 0:00:56]} 32. Bb6 {[%emt 0:00:47]} (32. Kd4 $16) 32... c5 {[%emt 0:12:27]} 33. h3 {[%emt 0:10:43]} Kd6 {[%emt 0:00:58]} 34. Bd8 {[%emt 0:01:08]} Kd7 {[%emt 0:02:25]} 35. Bg5 {[%emt 0:01:30]} Ke6 {[%emt 0:02:02]} 36. Be3 {[%emt 0:01:09]} Ba3 {[%emt 0:02:40]} 37. Bd2 {[%emt 0:04:46]} Bb4 {[%emt 0:01:46]} 38. Bxb4 {[%emt 0:11:28]} cxb4 {[%emt 0:00:09]} 39. Kd4 {[%emt 0:00:24]} g5 {[%emt 0:08:35]} 40. Kc4 {[%emt 0:00:00]} Ke5 $1 {[%emt 0:00:00]} 41. Kb5 {[%emt 0:02:51]} Kd4 {[%emt 0:00:16]} 42. Kxa5 {[%emt 0:00:08]} Kc3 {[%emt 0:00:12]} 43. Kb6 {[%emt 0:00:38]} Kxb3 {[%emt 0:00:08]} 44. a5 {[%emt 0:00:03]} Kc3 {[%emt 0:00:35]} 45. a6 {[%emt 0:00:04]} b3 {[%emt 0:00:12]} 46. a7 {[%emt 0:00:06]} b2 {[%emt 0:00:16]} 47. a8=Q {[%emt 0:00:16]} b1=Q+ $11 {[%emt 0:00:24]} 48. Kc7 {[%emt 0:00:17]} Qg6 {[%emt 0:00:48]} 49. Qd8 {[%emt 0:01:28]} Qf7+ {[%emt 0:05:31]} 50. Kc8 {[%emt 0:03:21]} 1/2-1/2

[Event "FIDE WCCC U12 2018"]
[Site "Santiago de Compostela"]
[Date "2018.11.07"]
[Round "3"]
[White "Damjanovic, Vuk"]
[Black "Makhmudjonov, Davlatbek"]
[Result "0-1"]
[ECO "A20"]
[WhiteElo "2053"]
[BlackElo "1608"]
[Annotator "NA RC"]
[PlyCount "170"]
[EventDate "2018.11.04"]
[EventType "swiss"]
[EventCountry "ESP"]
[SourceTitle "playchess.com"]
[Source "ChessBase"]
[SourceQuality "1"]
[TimeControl "40/5400+30:1800+30"]

{[%evp 8,156,22,7,18,-34,19,7,8,14,15,-1,10,7,11,22,39,0,0,-13,-8,0,0,-15,-3,-11,-12,-29,-12,-20,32767,-7,64,41,47,-6,42,49,37,0,32767,32767,32767,32767,-105,-110,-100,-102,-108,32767,32767,-212,32767,32767,32767,-220,32767,32767,32767,32767,32767,32767,32767,32767,32767,32767,32767,32767,-300,32767,-306,-304,-252,-247,-251,-252,-237,-275,-295,-302,32767,32767,-373,-343,-360,32767,32767,32767,32767,32767,-416,32767,-465,32767,32767,32767,-312,-266,-295,32767,32767,-361,32767,32767,32767,32767,-380,-609,-12836,-398,-341,-398,-572,-4134,-5065,32767,32767,32767,32767,32767,32767,32767,32767,32767,32767,32767,-272,-5206,-12793,32767,32767,32767,32767,32767,-29980,-29980,32767,32767,32767,32767,32767,32767,32767,32767,-194,-29986,-29987,-29986,-29987,-29987,-29988]} 1. c4 {[%emt 0:00:00]} e5 {[%emt 0:00:51]} 2. b3 {[%emt 0:00:00]} Nf6 {[%emt 0:07:55] A20: English Opening: 1...e5} 3. Bb2 {[%emt 0:00:28]} Bc5 {[%emt 0:00:21]} (3... Nc6 4. e3 g6 5. d3 Bg7 6. Nf3 d6 7. Be2 O-O 8. a3 Nd7 9. Nc3 a5 10. O-O Re8 11. Nd2 Nc5 12. Nd5 {½-½ (39) Topalov,V (2761)-Aronian,L (2792) Paris 2016}) 4. e3 {[%emt 0:00:10]} d6 {[%emt 0:00:55] LiveBook: 3 Games} 5. a3 {[%emt 0:02:40]} Nc6 {[%emt 0:06:31]} 6. d4 {[%emt 0:01:20]} ({White should play} 6. Nc3 $11) 6... Bb6 {[%emt 0:01:51]} (6... exd4 $15 7. exd4 Bb6) 7. dxe5 $146 {[%emt 0:04:22]} ({Predecessor:} 7. b4 exd4 8. exd4 Qe7+ 9. Be2 a6 10. Nf3 Bf5 11. O-O {½-½ (41) Mueschenich,S (2169)-Korb,A (2032) Germany 2005}) 7... Nxe5 {[%emt 0:08:05]} 8. Nf3 {[%emt 0:02:14]} Qe7 {[%emt 0:03:44]} 9. Be2 {[%emt 0:01:12]} Bf5 {[%emt 0:01:55]} 10. Nc3 {[%emt 0:01:42]} O-O {[%emt 0:04:01]} 11. O-O {[%emt 0:04:29]} Rad8 {[%emt 0:03:03]} 12. Qd2 {[%emt 0:16:55]} (12. Nh4 $5 {[%cal Rh4f5]} Bd7 13. h3 $11) 12... h6 {[%emt 0:03:13]} 13. Rfd1 {[%emt 0:01:56]} c6 {[%emt 0:01:15]} 14. Rac1 {[%emt 0:03:30]} Bc7 {[%emt 0:01:26]} 15. Qe1 {[%emt 0:02:09]} Bb8 {[%emt 0:10:06]} 16. h3 {[%emt 0:05:41]} Rfe8 {[%emt 0:03:07]} 17. b4 {[%emt 0:13:16]} Nxf3+ {[%emt 0:02:11]} 18. Bxf3 {[%emt 0:01:11]} Nd7 {[%emt 0:00:03]} 19. Ne2 {[%emt 0:14:11]} Qg5 {[%emt 0:03:31]} (19... Ne5 $11) 20. Ng3 {[%emt 0:02:22]} Bg6 {[%emt 0:02:38]} 21. Ne2 {[%emt 0:01:58]} Be4 {[%emt 0:10:57]} 22. Bxe4 {[%emt 0:01:09]} Rxe4 {[%emt 0:00:02]} 23. Rd4 {[%emt 0:00:38]} Ne5 {[%emt 0:04:34]} 24. f4 {[%emt 0:09:53]} Nf3+ {[%emt 0:00:10]} 25. Kh1 {[%emt 0:00:07]} Nxe1 {[%emt 0:00:09]} 26. fxg5 {[%emt 0:00:07]} Rxd4 {[%emt 0:00:36]} 27. Bxd4 {[%emt 0:01:22]} Nd3 {[%emt 0:00:11]} 28. Rf1 {[%emt 0:03:56]} hxg5 {[%emt 0:00:07]} 29. e4 {[%emt 0:01:02]} (29. Kg1 $17 {war nötig.} Ne5 30. Bxe5 dxe5 31. Ng3) 29... Re8 {[%emt 0:00:33]} 30. Nc3 {[%emt 0:00:32]} Nf4 {[%emt 0:00:34]} 31. g3 {[%emt 0:00:38]} (31. Rd1 $17) 31... Nxh3 {[%emt 0:01:34]} 32. Kg2 {[%emt 0:00:07]} g4 {[%emt 0:00:04]} 33. Be3 {[%emt 0:00:04]} Bc7 {[%emt 0:01:13]} 34. a4 {[%emt 0:01:41]} Bb6 {[%emt 0:00:10]} 35. c5 {[%emt 0:00:07]} dxc5 {[%emt 0:00:05]} 36. a5 {[%emt 0:00:36]} Bd8 {[%emt 0:00:22]} 37. Bxc5 {[%emt 0:00:59]} Bf6 {[%emt 0:00:10]} 38. Nd1 {[%emt 0:00:21]} Rxe4 {[%emt 0:00:42]} 39. Ne3 {[%emt 0:01:13]} Bd4 {[%emt 0:00:45]} 40. Nxg4 {[%emt 0:00:00]} Bxc5 {[%emt 0:00:00]} 41. bxc5 {[%emt 0:01:17]} Rxg4 {[%emt 0:01:14]} 42. Kxh3 {[%emt 0:00:01]} Rb4 {[%emt 0:00:10]} 43. Rd1 {[%emt 0:00:11]} Rb5 {[%emt 0:00:08]} 44. Rd8+ {[%emt 0:00:09]} Kh7 {[%emt 0:00:06]} 45. Rd7 {[%emt 0:00:01]} f6 {[%emt 0:00:45]} 46. a6 {[%emt 0:00:14]} bxa6 {[%emt 0:00:05]} 47. Rxa7 {[%emt 0:00:02]} a5 {[%emt 0:00:06]} 48. Kg4 {[%emt 0:00:10]} Rxc5 {[%emt 0:00:07]} 49. Kf4 {[%emt 0:00:19]} Rc4+ {[%emt 0:00:16]} 50. Kf5 {[%emt 0:00:05]} a4 {[%emt 0:00:06]} 51. g4 {[%emt 0:00:01]} Rc3 {[%emt 0:00:24]} 52. Rxa4 {[%emt 0:00:09]} Rc5+ {[%emt 0:00:09]} 53. Kf4 {[%emt 0:00:05]} Kg6 {[%emt 0:00:09]} 54. Ra7 {[%emt 0:00:09]} Rc1 {[%emt 0:00:17]} 55. Rc7 {[%emt 0:00:10]} c5 {[%emt 0:00:04]} 56. Kg3 {[%emt 0:00:12]} Rc3+ {[%emt 0:00:59]} 57. Kf4 {[%emt 0:00:06]} c4 {[%emt 0:00:05]} 58. Rc5 {[%emt 0:00:20]} Rc1 {[%emt 0:00:53]} 59. Kf3 {[%emt 0:00:34]} c3 {[%emt 0:00:04]} 60. Kg2 $2 {[%emt 0:00:03]} (60. Ke2) 60... c2 {[%emt 0:02:00]} 61. Kh2 {[%emt 0:00:10]} Kf7 {[%emt 0:00:11]} 62. Kg2 {[%emt 0:00:04]} Ke6 {[%emt 0:00:07]} 63. Rc8 {[%emt 0:00:03]} Ke5 {[%emt 0:00:19]} 64. Rc4 {[%emt 0:00:05]} g5 {[%emt 0:00:06]} 65. Kh2 {[%emt 0:00:04]} Kd5 {[%emt 0:00:06]} 66. Rc8 {[%emt 0:00:04]} Ke4 {[%emt 0:00:09]} 67. Kg2 $2 {[%emt 0:00:06]} (67. Rc6) 67... Ke3 {[%emt 0:00:53]} 68. Rc6 {[%emt 0:01:44]} Rd1 {[%emt 0:00:08]} 69. Rxc2 {[%emt 0:00:05]} Rd2+ {[%emt 0:00:03]} 70. Rxd2 {[%emt 0:00:02]} Kxd2 {[%emt 0:00:01]} 71. Kf2 {[%emt 0:00:01]} Kd3 {[%emt 0:00:14]} 72. Kf3 {[%emt 0:00:00]} Kd4 {[%emt 0:00:08]} 73. Kf2 {[%emt 0:00:03]} Ke4 {[%emt 0:00:07]} 74. Kg2 {[%emt 0:00:01]} Kf4 {[%emt 0:00:08]} 75. Kh3 {[%emt 0:00:02]} Kf3 {[%emt 0:00:07]} 76. Kh2 {[%emt 0:00:01]} Kxg4 {[%emt 0:00:08]} 77. Kg2 {[%emt 0:00:01]} f5 {[%emt 0:00:09]} 78. Kf2 {[%emt 0:00:04]} f4 {[%emt 0:00:04]} 79. Kg2 {[%emt 0:00:02]} f3+ {[%emt 0:00:05]} 80. Kf2 {[%emt 0:00:02]} Kf4 {[%emt 0:00:05]} 81. Kf1 {[%emt 0:00:02]} Kg3 {[%emt 0:00:15]} 82. Kg1 {[%emt 0:00:04]} f2+ {[%emt 0:00:07]} 83. Kf1 {[%emt 0:00:03]} g4 {[%emt 0:00:04]} 84. Ke2 {[%emt 0:00:05]} Kg2 {[%emt 0:00:05]} 85. Ke3 {[%emt 0:00:01]} f1=Q {[%emt 0:00:11]} 0-1